bitfinex/quotes_BTCUSD_20251209
["timestamp","ask_amount","ask_price","bid_price","bid_amount"]
[1765264489933,0.2273353,90191.0,90190.0,0.0012]
[1765264490825,0.2273353,90191.0,90190.0,0.0002]
[1765264490826,0.2283353,90191.0,90190.0,0.0002]
[1765264491025,0.2283353,90191.0,90190.0,0.0012]
[1765264493079,0.20617452,90191.0,90190.0,0.0012]
[1765264494063,0.25641876,90191.0,90190.0,0.0012]
[1765264495934,0.47817037,90191.0,90190.0,0.0012]
[1765264498002,0.19017452,90191.0,90190.0,0.0012]
[1765264498201,0.20617452,90191.0,90190.0,0.0012]
[1765264500842,0.19017452,90191.0,90190.0,0.0012]
[1765264501456,0.20617452,90191.0,90190.0,0.0012]
[1765264501657,0.19017452,90191.0,90190.0,0.0012]
[1765264503210,0.20617452,90191.0,90190.0,0.0012]
[1765264505150,0.2553101,90191.0,90190.0,0.0012]
[1765264505557,0.20617452,90191.0,90190.0,0.0012]
[1765264506159,0.22505286,90191.0,90190.0,0.0012]
[1765264508076,0.20617452,90191.0,90190.0,0.0012]
[1765264510191,0.19017452,90191.0,90190.0,0.22295407]
[1765264510961,0.20617452,90191.0,90190.0,0.22295407]
[1765264511730,0.19017452,90191.0,90190.0,0.22295407]
[1765264513645,0.11165153,90191.0,90190.0,0.22456694]
[1765264514024,0.11165153,90191.0,90190.0,0.26484694]
[1765264514025,0.02851818,90191.0,90190.0,0.26484694]
[1765264514758,0.02751818,90191.0,90190.0,0.26484694]
[1765264514958,0.02751818,90191.0,90190.0,0.26684694]
[1765264515343,0.02751818,90191.0,90190.0,0.26584694]
[1765264515558,0.02751818,90191.0,90190.0,0.26384694]
[1765264515763,0.02999601,90217.0,90216.0,0.22169016]
[1765264515996,0.04763142,90217.0,90216.0,0.22169016]
[1765264516206,0.11015441,90217.0,90216.0,0.22169016]
[1765264516967,0.12604441,90217.0,90216.0,0.22169016]
[1765264518191,0.04763142,90217.0,90216.0,0.22169016]
[1765264518385,0.04763142,90217.0,90216.0,0.22369016]
[1765264524512,0.07952142,90217.0,90216.0,0.002]
[1765264524711,0.14204441,90217.0,90216.0,0.002]
[1765264524952,0.17637667,90217.0,90216.0,0.002]
[1765264525141,0.16420519,90217.0,90216.0,0.002]
[1765264525835,0.14204441,90217.0,90216.0,0.002]
[1765264526189,0.16420519,90217.0,90216.0,0.002]
[1765264526381,0.14204441,90217.0,90216.0,0.002]
[1765264526579,0.11015441,90217.0,90215.0,0.22169241]
[1765264526782,0.02199601,90216.0,90215.0,0.22169241]
[1765264527610,0.02199601,90216.0,90215.0,0.22330528]
[1765264527959,0.02199601,90216.0,90215.0,0.26558528]
[1765264528360,0.02199601,90216.0,90215.0,0.26658528]
[1765264529665,0.02199601,90216.0,90215.0,0.26458528]
[1765264529856,0.02199601,90216.0,90215.0,0.26758528]
[1765264530465,0.02199601,90216.0,90215.0,0.26658528]
[1765264530668,0.02199601,90216.0,90215.0,0.26758528]
[1765264531462,0.03951601,90216.0,90215.0,0.26758528]
[1765264533331,0.03951601,90216.0,90215.0,0.26458528]
[1765264533460,0.03951601,90216.0,90215.0,0.26658528]
[1765264533662,0.02199601,90216.0,90215.0,0.26758528]
[1765264533866,0.00011541,90217.0,90215.0,0.26758528]
[1765264534065,0.00011541,90217.0,90216.0,0.06244901]
[1765264534289,0.02211142,90217.0,90216.0,0.06406188]
[1765264534549,0.02211142,90217.0,90216.0,0.04189287]
[1765264536342,0.02211142,90217.0,90216.0,0.04389287]
[1765264537450,0.02211142,90217.0,90216.0,0.04589287]
[1765264544045,0.02211142,90217.0,90216.0,0.06131083]
[1765264544885,0.02211142,90217.0,90216.0,0.04589287]
[1765264546856,0.02211142,90217.0,90216.0,0.06182306]
[1765264547300,0.02211142,90217.0,90216.0,0.07426306]
[1765264548758,0.02211142,90217.0,90216.0,0.05833287]
[1765264549976,0.02211142,90217.0,90216.0,0.07694769]
[1765264550417,0.02211142,90217.0,90216.0,0.08050188]
[1765264551693,0.00011541,90217.0,90216.0,0.08050188]
[1765264553724,0.00011541,90217.0,90216.0,0.40350188]
[1765264553912,0.00011541,90217.0,90216.0,0.38133287]
[1765264554111,0.00011541,90217.0,90216.0,0.40332888]
[1765264554324,0.00011541,90217.0,90216.0,0.44301263]
[1765264555159,0.00011541,90217.0,90216.0,0.40332888]
[1765264559164,0.00011541,90217.0,90216.0,0.46285451]
[1765264559309,0.00011541,90217.0,90216.0,0.40332888]
[1765264560185,1e-08,90217.0,90216.0,0.40332888]
[1765264561570,1e-08,90217.0,90216.0,0.40132888]
[1765264561784,1e-08,90217.0,90216.0,0.39932888]
[1765264561985,1e-08,90217.0,90216.0,0.40532888]
[1765264562302,1e-08,90217.0,90216.0,0.48451363]
[1765264563419,1e-08,90217.0,90216.0,1.10012863]
[1765264563747,1e-08,90217.0,90216.0,1.02094388]
[1765264565316,0.00999818,90256.0,90255.0,0.01107971]
[1765264565464,0.01011389,90256.0,90255.0,0.23267203]
[1765264566693,0.01211389,90256.0,90255.0,0.23267203]
[1765264567085,0.01211389,90256.0,90255.0,0.27116203]
[1765264568229,0.01211389,90256.0,90255.0,0.24821203]
[1765264568427,0.01211389,90256.0,90251.0,0.2340439]
[1765264568428,0.07252117,90230.0,90229.0,0.0395449]
[1765264568632,0.084519,90229.0,90228.0,0.01108303]
[1765264568787,0.099519,90229.0,90228.0,0.01108303]
[1765264568995,0.02199601,90221.0,90220.0,0.00099999]
[1765264569207,0.02199601,90221.0,90220.0,0.22268032]
[1765264569208,0.02899601,90221.0,90220.0,0.22268032]
[1765264570399,0.02199601,90221.0,90220.0,0.22268032]
[1765264571212,0.02299601,90221.0,90220.0,0.00099999]
[1765264571516,0.02299601,90221.0,90210.0,0.00099999]
[1765264571517,0.02199601,90211.0,90210.0,0.00099999]
[1765264571721,0.03951601,90211.0,90210.0,0.0011154]
[1765264571930,0.03951601,90211.0,90210.0,0.00011541]
[1765264571931,0.06951601,90211.0,90210.0,0.00011541]
[1765264572726,0.06951601,90211.0,90210.0,0.00111541]
[1765264572972,0.06951601,90211.0,90210.0,0.00311541]
[1765264573387,0.03951601,90211.0,90210.0,0.00311541]
[1765264573597,0.06951601,90211.0,90210.0,0.00311541]
[1765264573908,0.06951601,90211.0,90210.0,0.00211541]
[1765264574112,0.06951601,90211.0,90210.0,0.00011541]
[1765264586215,0.02199601,90211.0,90210.0,0.05407828]
[1765264586490,0.03951601,90211.0,90210.0,0.05407828]
[1765264587450,0.03951601,90211.0,90210.0,0.05807828]
[1765264589775,0.03951601,90211.0,90210.0,0.03338828]
[1765264589973,0.03951601,90211.0,90210.0,0.01776828]
[1765264592881,0.03951601,90211.0,90210.0,0.03338828]
[1765264593072,0.03951601,90211.0,90210.0,0.05807828]
[1765264594517,0.02199601,90211.0,90210.0,0.05807828]
[1765264594732,0.03951601,90211.0,90210.0,0.05807828]
[1765264597437,0.03951601,90211.0,90210.0,0.08024877]
[1765264599257,0.02199601,90211.0,90210.0,0.08024877]
[1765264599466,0.03951601,90211.0,90210.0,0.08024877]
[1765264599668,0.01752,90211.0,90210.0,0.05807828]
[1765264599844,0.03951601,90211.0,90210.0,0.05807828]
[1765264600670,0.22163989,90237.0,90210.0,0.05807828]
[1765264600671,0.008,90231.0,90228.0,0.01108303]
[1765264600870,0.00999818,90229.0,90228.0,0.01108303]
[1765264601898,0.00999818,90229.0,90228.0,0.23274164]
[1765264602632,0.03999818,90229.0,90225.0,0.0110834]
[1765264602836,0.02199601,90211.0,90210.0,0.00172828]
[1765264603040,0.02199601,90211.0,90210.0,0.00011541]
[1765264603041,0.04342601,90211.0,90210.0,0.00011541]
[1765264603255,0.03951601,90211.0,90210.0,0.22182032]
[1765264604026,0.03951601,90211.0,90210.0,0.22382032]
[1765264604157,0.03951601,90211.0,90210.0,0.22182032]
[1765264604559,0.03951601,90211.0,90210.0,0.22282032]
[1765264605162,0.03951601,90211.0,90210.0,0.22382032]
[1765264612846,0.03951601,90211.0,90210.0,0.26226032]
[1765264613007,0.03951601,90211.0,90210.0,0.26387319]
[1765264613845,0.02199601,90211.0,90210.0,0.26387319]
[1765264614046,0.03951601,90211.0,90210.0,0.26387319]
[1765264616266,0.03951601,90211.0,90210.0,0.24128319]
[1765264617094,0.03951601,90211.0,90210.0,0.26387319]
[1765264623300,0.03951601,90211.0,90210.0,0.22543319]
[1765264624178,0.03951601,90211.0,90210.0,0.24128319]
[1765264624385,0.03951601,90211.0,90210.0,0.26532319]
[1765264627693,0.03951601,90211.0,90210.0,0.22543319]
[1765264630090,0.03951601,90211.0,90210.0,0.24186319]
[1765264631707,0.03951601,90211.0,90210.0,0.26590319]
[1765264632321,0.01752,90211.0,90210.0,0.26590319]
[1765264632609,0.01752,90211.0,90210.0,0.30544809]
[1765264633447,0.01752,90211.0,90210.0,0.58890319]
[1765264636270,0.02199601,90213.0,90212.0,0.54469999]
[1765264636491,0.00999818,90227.0,90226.0,0.23274678]
[1765264636634,0.02751818,90227.0,90226.0,0.23274678]
[1765264636835,0.02751818,90227.0,90226.0,0.28597965]
[1765264637037,0.38284716,90260.0,90226.0,0.28597965]
[1765264637038,0.02590601,90247.0,90246.0,0.22161647]
[1765264637235,0.02590601,90247.0,90246.0,0.22322934]
[1765264637236,0.04342601,90247.0,90246.0,0.22322934]
[1765264638039,0.04342601,90247.0,90246.0,0.00161287]
[1765264638236,0.0435417,90247.0,90246.0,0.00161287]
[1765264645004,0.00999818,90246.0,90245.0,0.22161673]
[1765264645211,0.02199601,90243.0,90242.0,0.23270748]
[1765264645722,0.02981601,90243.0,90242.0,0.23270748]
[1765264646004,0.02590601,90243.0,90242.0,0.23270748]
[1765264646680,0.02199601,90243.0,90242.0,0.23270748]
[1765264647963,0.02590601,90243.0,90242.0,0.23270748]
[1765264651912,0.03951601,90243.0,90242.0,0.23270748]
[1765264653468,0.03951601,90243.0,90242.0,0.23470748]
[1765264653633,0.03951601,90243.0,90242.0,0.23570748]
[1765264657840,0.03951601,90243.0,90242.0,0.27527748]
[1765264658413,0.02199601,90243.0,90242.0,0.27689035]
[1765264663540,0.01752,90244.0,90242.0,0.27689035]
[1765264663741,0.01752,90244.0,90243.0,0.06187525]
[1765264663940,0.01752,90244.0,90243.0,0.38487525]
[1765264664144,0.01752,90244.0,90243.0,0.36271287]
[1765264665492,0.01752,90244.0,90243.0,0.36371287]
[1765264666392,0.01752,90244.0,90243.0,0.36471287]
[1765264674602,0.03951601,90244.0,90243.0,0.36471287]
[1765264675301,0.03951601,90244.0,90243.0,0.00361287]
[1765264675461,0.04733601,90244.0,90243.0,0.002]
[1765264675658,0.26895739,90244.0,90243.0,0.002]
[1765264676322,0.26895739,90244.0,90243.0,0.001]
[1765264676463,0.33148038,90244.0,90243.0,0.001]
[1765264676863,0.02199601,90239.0,90238.0,0.23271789]
[1765264677166,0.02590601,90239.0,90238.0,0.23271789]
[1765264678216,0.02590601,90239.0,90238.0,0.23371789]
[1765264679474,0.02590601,90239.0,90238.0,0.23471789]
[1765264681566,0.00011569,90247.0,90243.0,0.22162383]
[1765264681767,0.00999818,90244.0,90243.0,0.2232367]
[1765264682392,0.00999818,90244.0,90243.0,0.2385267]
[1765264682597,0.00999818,90244.0,90243.0,0.2613367]
[1765264683006,0.00999818,90244.0,90243.0,0.2633367]
[1765264684350,0.00999818,90244.0,90243.0,0.2643367]
[1765264707703,0.00999818,90244.0,90243.0,0.2415267]
[1765264708029,0.00999818,90244.0,90243.0,0.2262367]
[1765264709750,0.00999818,90244.0,90243.0,0.2652867]
[1765264713500,0.00999818,90244.0,90243.0,0.2664092]
[1765264719087,0.00999818,90244.0,90243.0,0.30604867]
[1765264721251,0.0221117,90247.0,90246.0,0.22161647]
[1765264721455,0.0221117,90247.0,90246.0,0.23927934]
[1765264721717,0.0221117,90247.0,90246.0,0.30191881]
[1765264722391,0.0221117,90247.0,90246.0,0.30291881]
[1765264722981,0.0221117,90247.0,90246.0,0.30391881]
[1765264723182,0.0221117,90247.0,90246.0,0.26427934]
[1765264724118,0.0221117,90247.0,90246.0,0.30391881]
[1765264724668,0.0221117,90247.0,90246.0,0.26427934]
[1765264726610,0.0221117,90247.0,90246.0,0.26531225]
[1765264728807,0.00011569,90247.0,90246.0,0.26531225]
[1765264729083,0.00011569,90247.0,90246.0,0.58831225]
[1765264729513,0.00011569,90247.0,90246.0,0.60483225]
[1765264729723,0.00011569,90247.0,90246.0,0.60383225]
[1765264730019,0.00111569,90247.0,90246.0,0.60383225]
[1765264730226,0.00111569,90247.0,90246.0,0.60583225]
[1765264730449,0.00011569,90247.0,90246.0,0.60583225]
[1765264730574,0.00011569,90247.0,90246.0,0.60683225]
[1765264740650,0.02023509,90273.0,90272.0,0.22155264]
[1765264740864,0.02023509,90273.0,90272.0,0.25096551]
[1765264740865,0.00023873,90273.0,90272.0,0.25096551]
[1765264741198,0.00023873,90273.0,90272.0,0.27561551]
[1765264741374,0.00023873,90273.0,90272.0,0.29313551]
[1765264742779,0.00323873,90273.0,90272.0,0.29313551]
[1765264743008,0.00223873,90273.0,90272.0,0.29313551]
[1765264743448,0.00223873,90273.0,90272.0,0.61613551]
[1765264743596,0.00423873,90273.0,90272.0,0.61613551]
[1765264744417,0.00223873,90273.0,90272.0,0.72606551]
[1765264744626,0.00023873,90273.0,90272.0,0.72606551]
[1765264745813,0.00023873,90273.0,90272.0,0.72806551]
[1765264746015,0.00023873,90273.0,90272.0,0.72832222]
[1765264746470,0.00023873,90273.0,90272.0,0.73132222]
[1765264751507,0.00023873,90273.0,90272.0,0.79030985]
[1765264752149,0.00023873,90273.0,90272.0,0.73132222]
[1765264752361,0.00023873,90273.0,90272.0,0.79030791]
[1765264754494,0.00023873,90273.0,90272.0,0.80782791]
[1765264754620,0.00023873,90273.0,90272.0,0.69789791]
[1765264754825,0.00023873,90273.0,90272.0,0.62139222]
[1765264755062,0.02223474,90273.0,90272.0,0.29839222]
[1765264755465,0.02223474,90273.0,90272.0,0.62139222]
[1765264755700,0.02223474,90273.0,90272.0,0.61839222]
[1765264756026,0.02223474,90273.0,90272.0,0.61939222]
[1765264756441,0.00023873,90273.0,90272.0,0.61939222]
[1765264756647,0.00023873,90273.0,90272.0,0.61739222]
[1765264757057,0.00023873,90273.0,90272.0,0.61839222]
[1765264762461,0.02223474,90273.0,90272.0,0.61839222]
[1765264762975,0.00023873,90273.0,90272.0,0.61839222]
[1765264763640,0.00023873,90273.0,90272.0,0.65770893]
[1765264764322,0.00023873,90273.0,90272.0,0.61839222]
[1765264764886,0.02223474,90273.0,90272.0,0.61839222]
[1765264765092,0.00023873,90273.0,90272.0,0.61839222]
[1765264766907,0.02223474,90273.0,90272.0,0.61839222]
[1765264767532,0.02223474,90273.0,90272.0,0.59374222]
[1765264767730,0.02223474,90273.0,90272.0,0.61626222]
[1765264768150,0.02323474,90273.0,90272.0,0.65569753]
[1765264768772,0.02310914,90273.0,90272.0,0.65469753]
[1765264769085,0.02410914,90273.0,90272.0,0.65469753]
[1765264769245,0.02410914,90273.0,90272.0,0.61526222]
[1765264769454,0.00211313,90273.0,90272.0,0.67424791]
[1765264770336,0.00011313,90273.0,90272.0,0.67424791]
[1765264771668,0.00011313,90273.0,90272.0,0.61526222]
[1765264772319,1e-08,90273.0,90272.0,0.61526222]
[1765264772657,1e-08,90273.0,90272.0,0.69435202]
[1765264773576,1e-08,90273.0,90272.0,0.69535202]
[1765264773782,1e-08,90273.0,90272.0,0.69635202]
[1765264773985,1e-08,90273.0,90272.0,0.69535202]
[1765264774525,1e-08,90273.0,90272.0,0.61726222]
[1765264774704,1e-08,90273.0,90272.0,2.16410822]
[1765264785742,1e-08,90273.0,90272.0,0.83659122]
[1765264785947,1e-08,90273.0,90272.0,0.82779922]
[1765264786446,1e-08,90273.0,90272.0,0.82379922]
[1765264787394,1e-08,90273.0,90272.0,0.74837722]
[1765264787600,1e-08,90273.0,90272.0,0.61326222]
[1765264788003,0.02199602,90273.0,90272.0,0.61326222]
[1765264788839,0.02199602,90273.0,90272.0,0.61126222]
[1765264789061,0.02299602,90273.0,90272.0,0.61126222]
[1765264792757,0.00100001,90273.0,90272.0,0.61126222]
[1765264795031,1e-08,90273.0,90272.0,0.61126222]
[1765264796873,1e-08,90273.0,90272.0,0.61326222]
[1765264797394,1e-08,90273.0,90272.0,1.03401822]
[1765264797528,1e-08,90273.0,90272.0,1.11283549]
[1765264797942,1e-08,90273.0,90272.0,1.03401822]
[1765264807062,1e-08,90273.0,90272.0,0.61326222]
[1765264817105,1e-08,90273.0,90272.0,1.75115322]
[1765264817328,1e-08,90273.0,90272.0,1.69013622]
[1765264817707,0.0004,90310.0,90309.0,0.22146186]
[1765264817897,0.0007858,90310.0,90309.0,0.24864186]
[1765264818092,0.02278181,90310.0,90309.0,0.27192186]
[1765264818719,0.02478181,90310.0,90309.0,0.27192186]
[1765264818959,0.02478181,90310.0,90309.0,0.24864186]
[1765264819330,0.01078398,90310.0,90309.0,0.22146186]
[1765264820230,0.01469398,90310.0,90309.0,0.22146186]
[1765264820621,0.01869398,90310.0,90309.0,0.22146186]
[1765264820819,0.01669398,90310.0,90309.0,0.22146186]
[1765264821244,0.01769398,90310.0,90309.0,0.22146186]
[1765264821558,0.01969398,90310.0,90309.0,0.22146186]
[1765264822210,0.01578398,90310.0,90309.0,0.22146186]
[1765264823266,0.01688763,90310.0,90309.0,0.22146186]
[1765264835234,0.01688763,90310.0,90309.0,0.23357186]
[1765264835815,0.01688763,90310.0,90309.0,0.27353473]
[1765264836019,0.00688945,90310.0,90309.0,0.27353473]
[1765264836159,0.00688945,90310.0,90309.0,0.59653473]
[1765264836570,0.00488945,90310.0,90309.0,0.59653473]
[1765264836771,0.00488945,90310.0,90309.0,0.61653109]
[1765264836968,0.00388945,90310.0,90309.0,0.67565955]
[1765264837349,0.00688945,90310.0,90309.0,0.67565955]
[1765264837520,0.00488945,90310.0,90309.0,0.61653109]
[1765264837718,0.00688945,90310.0,90309.0,0.61653109]
[1765264838074,0.00688945,90310.0,90309.0,0.67565955]
[1765264838296,0.00688945,90310.0,90309.0,0.61653109]
[1765264839995,0.00688945,90310.0,90309.0,0.67565955]
[1765264840202,0.00688945,90310.0,90309.0,0.61653109]
[1765264840781,0.00488945,90310.0,90309.0,0.61653109]
[1765264842208,0.00188945,90310.0,90309.0,0.61653109]
[1765264842407,0.00288945,90310.0,90309.0,0.61653109]
[1765264852499,0.00288945,90310.0,90309.0,0.25518109]
[1765264852500,0.02488546,90310.0,90309.0,0.25518109]
[1765264852676,0.02488546,90310.0,90309.0,0.27422473]
[1765264853476,0.00288945,90310.0,90309.0,0.27422473]
[1765264853682,0.00288945,90310.0,90309.0,0.59722473]
[1765264854087,0.00288945,90310.0,90309.0,0.60165819]
[1765264854766,0.0004,90320.0,90319.0,0.323]
[1765264854992,0.00051111,90320.0,90319.0,0.41149739]
[1765264855191,0.00051111,90320.0,90319.0,0.43426739]
[1765264855401,0.00051111,90320.0,90319.0,0.38523105]
[1765264856020,0.00051111,90320.0,90319.0,0.38623105]
[1765264856588,0.00391,90348.0,90339.0,0.22138832]
[1765264856589,0.01039818,90340.0,90339.0,0.22138832]
[1765264856785,0.01039818,90340.0,90339.0,0.24923832]
[1765264857060,0.01039818,90340.0,90339.0,0.27200832]
[1765264857469,0.0004,90340.0,90339.0,0.27362119]
[1765264857847,0.0014,90340.0,90339.0,0.27362119]
[1765264858642,0.0034,90340.0,90339.0,0.27362119]
[1765264859284,0.0034,90340.0,90339.0,0.63595857]
[1765264859616,0.0034,90340.0,90339.0,0.59662119]
[1765264860010,0.0004,90340.0,90339.0,0.59662119]
[1765264860231,0.01748,90365.0,90349.0,0.22136382]
[1765264860382,0.01748,90365.0,90349.0,0.57382669]
[1765264860383,0.00051099,90350.0,90349.0,0.57382669]
[1765264860594,0.00051099,90350.0,90349.0,0.59659669]
[1765264862575,1e-08,90350.0,90349.0,0.59659669]
[1765264863388,1e-08,90350.0,90349.0,0.61407669]
[1765264864396,1e-08,90350.0,90349.0,0.63155669]
[1765264865466,1e-08,90350.0,90349.0,0.61407669]
[1765264865653,0.00119237,90350.0,90349.0,0.61407669]
[1765264866732,0.00119237,90350.0,90349.0,0.65327783]
[1765264867348,0.00119237,90350.0,90349.0,0.61407669]
[1765264867609,0.00119237,90350.0,90349.0,0.65327783]
[1765264868168,0.00119237,90350.0,90349.0,0.61407669]
[1765264870266,1e-08,90350.0,90349.0,0.61407669]
[1765264875466,0.02216078,90396.0,90349.0,0.61407669]
[1765264875467,1e-08,90370.0,90369.0,0.22131483]
[1765264875786,1e-08,90370.0,90369.0,0.5726377]
[1765264875948,1e-08,90370.0,90369.0,0.5973077]
[1765264876148,1e-08,90370.0,90369.0,0.60173757]
[1765264876647,0.02590601,90402.0,90401.0,0.22123649]
[1765264876950,0.02590601,90402.0,90401.0,0.22162229]
[1765264878270,0.0004,90410.0,90401.0,0.22162229]
[1765264878271,0.02239601,90410.0,90409.0,0.22121691]
[1765264878758,0.02630601,90410.0,90409.0,0.22121691]
[1765264879577,0.02539601,90410.0,90409.0,0.22121691]
[1765264879747,0.03321601,90410.0,90409.0,0.22121691]
[1765264880073,0.02930601,90410.0,90409.0,0.22121691]
[1765264881725,0.02830601,90410.0,90409.0,0.22121691]
[1765264882050,0.03209297,90410.0,90409.0,0.22121691]
[1765264882245,0.03600297,90410.0,90409.0,0.22121691]
[1765264882590,0.03400297,90410.0,90409.0,0.22121691]
[1765264882742,0.03500297,90410.0,90409.0,0.22121691]
[1765264883561,0.01518514,90410.0,90409.0,0.22121691]
[1765264883877,0.01909514,90410.0,90409.0,20.22121691]
[1765264884627,0.02300514,90410.0,90409.0,20.22121691]
[1765264885663,0.02300514,90410.0,90409.0,20.0]
[1765264886049,0.02300514,90410.0,90409.0,20.22121691]
[1765264889198,0.36824583,90410.0,90409.0,20.0]
[1765264889517,0.30674259,90410.0,90409.0,20.0]
[1765264890256,0.30474259,90410.0,90409.0,20.0]
[1765264890801,0.30374259,90410.0,90409.0,20.0]
[1765264891219,0.30574259,90410.0,90409.0,20.0]
[1765264893519,0.62874259,90410.0,90409.0,19.80193]
[1765264893720,0.73722187,90410.0,90409.0,19.80193]
[1765264894542,0.73522187,90410.0,90409.0,19.80193]
[1765264894925,0.74022187,90410.0,90409.0,19.80193]
[1765264895901,2.26379988,90410.0,90409.0,19.80193]
[1765264896102,2.23406587,90410.0,90409.0,19.80193]
[1765264896279,2.24206587,90410.0,90409.0,19.80193]
[1765264896662,1.83534487,90410.0,90409.0,19.80193]
[1765264897081,1.83534487,90410.0,90409.0,19.21622763]
[1765264897082,1.91908859,90410.0,90409.0,19.21622763]
[1765264897285,1.91908859,90410.0,90409.0,19.18301279]
[1765264897286,1.67469759,90410.0,90409.0,19.18301279]
[1765264897503,1.67469759,90410.0,90409.0,19.14979795]
[1765264897504,1.65172451,90410.0,90409.0,19.14979795]
[1765264897750,1.65172451,90410.0,90409.0,19.11658311]
[1765264897952,1.64672451,90410.0,90409.0,19.08336827]
[1765264898167,1.64672451,90410.0,90409.0,19.05015343]
[1765264898380,1.62296559,90410.0,90409.0,19.016933]
[1765264898550,0.95189959,90410.0,90409.0,19.016933]
[1765264898714,0.86090031,90410.0,90409.0,19.016933]
[1765264898916,0.85290031,90410.0,90409.0,19.016933]
[1765264899318,0.85990031,90410.0,90409.0,19.016933]
[1765264899500,0.85290031,90410.0,90409.0,19.016933]
[1765264899937,0.96237959,90410.0,90409.0,19.016933]
[1765264900200,0.99361821,90410.0,90409.0,19.016933]
[1765264900451,1.00061821,90410.0,90409.0,19.016933]
[1765264900755,0.99561821,90410.0,90409.0,19.016933]
[1765264900918,1.00061821,90410.0,90409.0,19.016933]
[1765264903847,0.99015121,90410.0,90409.0,19.016933]
[1765264904055,0.88168421,90410.0,90409.0,19.016933]
[1765264904251,1.00005921,90410.0,90409.0,19.016933]
[1765264905084,0.88168421,90410.0,90409.0,19.016933]
[1765264905460,0.62693822,90410.0,90409.0,19.016933]
[1765264905880,0.30393822,90410.0,90409.0,19.016933]
[1765264906046,0.36646121,90410.0,90409.0,19.016933]
[1765264906260,0.5816996,90410.0,90409.0,19.016933]
[1765264906464,0.03748514,90410.0,90409.0,19.016933]
[1765264906791,0.04248514,90410.0,90409.0,19.016933]
[1765264906989,0.42300813,90410.0,90409.0,19.016933]
[1765264907182,0.42400813,90410.0,90409.0,19.016933]
[1765264907383,0.42600813,90410.0,90409.0,19.016933]
[1765264909732,0.42604813,90410.0,90409.0,19.016933]
[1765264911762,0.52674749,90410.0,90409.0,19.016933]
[1765264911942,0.42604813,90410.0,90409.0,19.016933]
[1765264916025,0.42608813,90410.0,90409.0,19.016933]
[1765264918801,0.42604813,90410.0,90409.0,19.016893]
[1765264921146,0.02304514,90410.0,90409.0,19.01850587]
[1765264921322,0.04052514,90410.0,90409.0,19.23972278]
[1765264921683,0.01913514,90410.0,90409.0,19.23972278]
[1765264921903,0.03561514,90410.0,90409.0,19.23972278]
[1765264922221,0.02970514,90410.0,90409.0,19.23972278]
[1765264922422,0.03070514,90410.0,90409.0,19.24072278]
[1765264922716,0.03070514,90410.0,90409.0,19.23972278]
[1765264922920,0.02970514,90410.0,90409.0,19.23972278]
[1765264923321,0.03290514,90410.0,90409.0,19.23972278]
[1765264923540,0.03681514,90410.0,90409.0,19.23972278]
[1765264924304,0.03681514,90410.0,90409.0,19.24072278]
[1765264924508,0.03681514,90410.0,90409.0,19.24272278]
[1765264924710,0.03290514,90410.0,90409.0,19.24072278]
[1765264925112,0.01542514,90410.0,90409.0,19.24472278]
[1765264925316,0.03290514,90410.0,90409.0,19.24472278]
[1765264925634,0.03681514,90410.0,90409.0,19.24472278]
[1765264926210,0.01933514,90410.0,90409.0,19.24472278]
[1765264926409,0.03681514,90410.0,90409.0,19.24472278]
[1765264927424,0.03290514,90410.0,90409.0,19.24472278]
[1765264930204,0.03681514,90410.0,90409.0,19.24472278]
[1765264930596,0.04072514,90410.0,90409.0,19.24472278]
[1765264931853,0.04072514,90410.0,90409.0,19.02350587]
[1765264932049,0.04072514,90410.0,90409.0,19.24472278]
[1765264932250,0.03681514,90410.0,90409.0,19.24472278]
[1765264933899,0.04072514,90410.0,90409.0,19.24472278]
[1765264934701,0.04382514,90410.0,90409.0,19.24472278]
[1765264935512,0.04382514,90410.0,90409.0,19.02350587]
[1765264935908,0.04382514,90410.0,90409.0,19.021893]
[1765264936562,0.04382514,90410.0,90409.0,19.020893]
[1765264936766,0.12850891,90410.0,90409.0,19.020893]
[1765264937104,0.10634813,90410.0,90409.0,19.020893]
[1765264937672,0.10634813,90410.0,90409.0,19.016893]
[1765264938074,0.19719741,90410.0,90409.0,19.018893]
[1765264938295,0.19819741,90410.0,90409.0,19.016893]
[1765264938708,0.19819741,90410.0,90409.0,19.017893]
[1765264940468,0.22035819,90410.0,90409.0,19.017893]
[1765264940951,0.12950891,90410.0,90409.0,19.017893]
[1765264941073,0.10734813,90410.0,90409.0,19.017893]
[1765264942078,0.12950891,90410.0,90409.0,19.017893]
[1765264942286,0.45250891,90410.0,90409.0,19.017893]
[1765264942604,0.43034813,90410.0,90409.0,19.017893]
[1765264944624,0.36782514,90410.0,90409.0,19.017893]
[1765264944843,0.43034813,90410.0,90409.0,19.017893]
[1765264946149,0.42907693,90410.0,90409.0,19.017893]
[1765264955496,0.42907693,90410.0,90409.0,19.017793]
[1765264960846,0.41159693,90410.0,90409.0,19.017793]
[1765264961047,0.42907693,90410.0,90409.0,19.017793]
[1765264961711,0.41159693,90410.0,90409.0,19.017793]
[1765264961920,0.42907693,90410.0,90409.0,19.017793]
[1765264964413,0.53755621,90410.0,90409.0,19.017793]
[1765264967525,0.56736967,90410.0,90409.0,19.017793]
[1765264969864,0.56736967,90410.0,90409.0,19.016793]
[1765264970070,0.56636967,90410.0,90409.0,19.016793]
[1765264970247,1.75752021,90410.0,90409.0,19.016793]
[1765264970465,1.79275872,90410.0,90409.0,19.016793]
[1765264970676,1.85260588,90410.0,90409.0,19.016793]
[1765264971084,1.79075872,90410.0,90409.0,19.016793]
[1765264971291,1.85347851,90410.0,90409.0,19.016793]
[1765264971650,1.85247851,90410.0,90409.0,19.016793]
[1765264971892,1.85447851,90410.0,90409.0,19.016793]
[1765264972218,1.79475872,90410.0,90409.0,19.016793]
[1765264972765,1.85447851,90410.0,90409.0,19.016793]
[1765264973259,1.79475872,90410.0,90409.0,19.016793]
[1765264973629,1.85847851,90410.0,90409.0,19.016793]
[1765264974159,1.79875872,90410.0,90409.0,19.016793]
[1765264974516,1.85847851,90410.0,90409.0,19.016793]
[1765264974716,2.10337851,90410.0,90409.0,19.016793]
[1765264975141,1.55322272,90410.0,90409.0,19.016793]
[1765264976065,1.53574272,90410.0,90409.0,19.016793]
[1765264976266,1.06081244,90410.0,90409.0,19.016793]
[1765264976476,0.71721544,90410.0,90409.0,19.016793]
[1765264976662,0.88463844,90410.0,90409.0,19.016793]
[1765264977266,0.87663844,90410.0,90409.0,19.016793]
[1765264977411,0.88363844,90410.0,90409.0,19.016793]
[1765264977608,0.91211473,90410.0,90409.0,19.016793]
[1765264977855,0.62045394,90410.0,90409.0,19.016793]
[1765264978057,0.78302293,90410.0,90409.0,19.016793]
[1765264978310,0.78702293,90410.0,90409.0,19.016793]
[1765264979297,0.78402293,90410.0,90409.0,19.016793]
[1765264979518,0.78602293,90410.0,90409.0,19.016793]
[1765264979701,0.89050221,90410.0,90409.0,19.016793]